bitfinex/quotes_SOLUSD_20241122
["timestamp","ask_amount","ask_price","bid_price","bid_amount"]
[1732296402180,11.92759669,255.48,255.39,4.88184441]
[1732296402387,11.92759669,255.48,255.37,14.7371]
[1732296402980,11.92759669,255.46,255.34,4.91072659]
[1732296403360,11.92759669,255.44,255.34,4.91072659]
[1732296403873,11.92759669,255.46,255.34,4.91072659]
[1732296404082,11.92759669,255.46,255.35,4.88184441]
[1732296404461,11.92759669,255.44,255.35,9.792571]
[1732296404886,11.92759669,255.44,255.36,20.0]
[1732296405268,11.92759669,255.44,255.35,4.91072659]
[1732296407884,11.92759669,255.44,255.31,20.0]
[1732296408065,11.92759669,255.44,255.32,4.91072659]
[1732296409959,11.92759669,255.44,255.32,9.792571]
[1732296410166,11.92759669,255.48,255.33,24.88184441]
[1732296410379,11.92759669,255.48,255.34,4.91072659]
[1732296410713,11.92759669,255.48,255.35,24.88184441]
[1732296411005,11.92759669,255.48,255.36,24.91072659]
[1732296411164,11.92759669,255.48,255.36,29.792571]
[1732296411885,11.92759669,255.43,255.31,20.0]
[1732296412887,11.92759669,255.43,255.31,24.91072659]
[1732296413681,11.92759669,255.43,255.31,4.91072659]
[1732296413878,11.92759669,255.39,255.21,14.7652]
[1732296414185,11.92759669,255.43,255.22,9.22341864]
[1732296414975,11.92759669,255.43,255.23,23.776884]
[1732296415178,11.92759669,255.41,255.25,23.776884]
[1732296415579,11.92759669,255.41,255.26,20.0]
[1732296416375,23.776884,255.4,255.24,4.63984035]
[1732296416598,11.92759669,255.39,255.24,4.63984035]
[1732296416801,11.92759669,255.39,255.22,23.776884]
[1732296417671,11.92759669,255.39,255.21,14.7652]
[1732296417876,11.92759669,255.37,255.22,20.0]
[1732296418097,11.92759669,255.39,255.23,4.63984035]
[1732296418686,11.92759669,255.37,255.23,4.63984035]
[1732296418894,23.776884,255.4,255.21,14.7652]
[1732296418895,7.64220636,255.35,255.21,14.7652]
[1732296420197,7.64220636,255.35,255.22,20.0]
[1732296420494,23.776884,255.4,255.22,20.0]
[1732296420691,18.3103,255.41,255.24,20.0]
[1732296420896,18.3103,255.41,255.23,28.12057761]
[1732296420897,7.64220636,255.44,255.27,3.905]
[1732296421073,7.64220636,255.44,255.27,8.54484035]
[1732296421395,7.1876,255.45,255.27,8.54484035]
[1732296421396,7.64220636,255.42,255.27,4.63984035]
[1732296422782,11.93303552,255.43,255.28,23.776884]
[1732296422988,30.92543552,255.47,255.31,20.0]
[1732296423172,11.93303552,255.45,255.31,24.63984035]
[1732296423502,11.93303552,255.45,255.31,20.0]
[1732296423797,11.93303552,255.43,255.31,20.0]
[1732296423976,11.93303552,255.39,255.3,14.8707]
[1732296424397,23.776884,255.3,255.13,7.5193]
[1732296424596,11.93303552,255.26,255.13,7.5193]
[1732296424781,11.93303552,255.28,255.13,7.5193]
[1732296424986,11.93303552,255.3,255.13,7.5193]
[1732296425994,11.93303552,255.32,255.14,20.0]
[1732296426677,11.93303552,255.3,255.14,20.0]
[1732296427582,11.93303552,255.3,255.16,20.0]
[1732296427787,11.93303552,255.32,255.16,20.0]
[1732296428914,23.776884,255.37,255.19,23.776884]
[1732296428915,11.93303552,255.34,255.19,23.776884]
[1732296429082,23.776884,255.37,255.22,20.0]
[1732296429083,11.93303552,255.36,255.22,20.0]
[1732296429980,11.93303552,255.36,255.24,20.0]
[1732296433515,11.93303552,255.38,255.24,20.0]
[1732296434106,11.93303552,255.4,255.25,23.776884]
[1732296434301,11.93303552,255.42,255.26,20.0]
[1732296435489,11.93303552,255.4,255.26,20.0]
[1732296436193,11.93303552,255.38,255.26,20.0]
[1732296436392,11.93303552,255.36,255.24,20.0]
[1732296436893,11.93303552,255.32,255.24,20.0]
[1732296437090,11.93303552,255.34,255.24,20.0]
[1732296439713,11.93303552,255.32,255.24,20.0]
[1732296441204,11.93303552,255.32,255.22,20.0]
[1732296441411,11.93303552,255.28,255.22,20.0]
[1732296442690,11.93303552,255.28,255.18,20.0]
[1732296442892,11.93303552,255.3,255.18,20.0]
[1732296447096,11.93303552,255.28,255.18,20.0]
[1732296447809,11.93303552,255.26,255.18,20.0]
[1732296451092,11.93303552,255.24,255.18,20.0]
[1732296452819,7.6485975,255.21,255.13,20.0]
[1732296453247,7.6485975,255.23,255.13,20.0]
[1732296454221,7.6485975,255.19,255.06,7.2902]
[1732296455120,7.6485975,255.17,255.06,7.2902]
[1732296456121,7.6485975,255.17,255.07,20.0]
[1732296456703,6.09030648,255.27,255.07,20.0]
[1732296456903,7.6485975,255.21,255.07,23.91036028]
[1732296457102,23.776884,255.27,255.08,3.91036028]
[1732296457318,7.6485975,255.25,255.1,20.0]
[1732296457823,7.6485975,255.23,255.1,20.0]
[1732296458001,7.6485975,255.19,255.07,20.0]
[1732296458713,7.6485975,255.17,255.07,20.0]
[1732296459704,7.6485975,255.15,255.07,20.0]
[1732296460697,11.95833607,255.15,255.07,20.0]
[1732296460901,11.95833607,255.09,254.97,15.0613]
[1732296462012,11.95833607,255.11,254.98,3.91036028]
[1732296462206,11.95833607,255.09,254.98,3.91036028]
[1732296462411,11.95833607,255.09,254.98,20.0]
[1732296462617,11.95833607,255.12,255.0,20.0]
[1732296462924,11.95833607,255.1,255.0,20.0]
[1732296464724,11.95833607,255.12,255.0,20.0]
[1732296467509,11.95833607,255.12,255.01,23.776884]
[1732296467826,11.95833607,255.15,255.04,20.0]
[1732296468024,11.95833607,255.17,255.04,20.0]
[1732296468328,17.3215,255.22,255.08,43.776884]
[1732296468526,11.95833607,255.21,255.08,43.776884]
[1732296468829,11.95833607,255.23,255.08,47.73061324]
[1732296469136,11.95833607,255.27,255.11,20.0]
[1732296469425,11.95833607,255.27,255.13,20.0]
[1732296470605,11.95833607,255.25,255.13,20.0]
[1732296470809,11.95833607,255.23,255.09,23.776884]
[1732296471207,11.95833607,255.23,255.1,20.0]
[1732296471821,11.95833607,255.23,255.07,15.0214]
[1732296472026,11.95833607,255.23,255.08,23.776884]
[1732296472528,11.95833607,255.23,255.08,27.73061324]
[1732296473028,11.95833607,255.23,255.09,20.0]
[1732296473611,11.95833607,255.23,255.11,20.0]
[1732296474334,11.95833607,255.23,255.1,23.776884]
[1732296474537,11.95833607,255.23,255.11,20.0]
[1732296477732,11.95833607,255.25,255.11,20.0]
[1732296477932,11.95833607,255.27,255.14,23.776884]
[1732296478243,11.95833607,255.27,255.15,20.0]
[1732296478429,17.3215,255.28,255.15,20.0]
[1732296479039,11.95833607,255.31,255.17,20.0]
[1732296480537,11.95833607,255.29,255.17,20.0]
[1732296480737,11.95833607,255.29,255.11,3.91036028]
[1732296480738,11.95833607,255.29,255.13,23.776884]
[1732296481042,11.95833607,255.29,255.16,20.0]
[1732296481246,11.95833607,255.27,255.16,20.0]
[1732296481627,11.95833607,255.27,255.08,20.0]
[1732296481833,11.95833607,255.27,255.09,4.25824637]
[1732296482127,11.95833607,255.27,255.1,20.0]
[1732296482322,11.95833607,255.27,255.11,4.30324867]
[1732296482540,11.95833607,255.27,255.11,24.30324867]
[1732296482743,11.95833607,255.27,255.12,23.776884]
[1732296483043,11.95833607,255.27,255.15,20.0]
[1732296483946,11.95833607,255.27,255.11,24.30324867]
[1732296484152,11.95833607,255.27,255.13,20.0]
[1732296484446,11.95833607,255.25,255.13,20.0]
[1732296484746,11.95833607,255.27,255.13,20.0]
[1732296485347,11.95833607,255.27,255.13,28.56149504]
[1732296485740,11.95833607,255.27,255.15,20.0]
[1732296486631,7.64853201,255.25,255.15,20.0]
[1732296486829,7.64853201,255.27,255.15,20.0]
[1732296487246,7.64853201,255.25,255.09,23.776884]
[1732296487447,7.64853201,255.25,255.1,20.0]
[1732296487756,7.64853201,255.27,255.12,20.0]
[1732296487935,7.64853201,255.27,255.13,4.25824637]
[1732296488343,23.776884,255.33,255.13,4.25824637]
[1732296488546,23.776884,255.33,255.15,20.0]
[1732296488547,7.64853201,255.29,255.15,20.0]
[1732296488850,7.64853201,255.29,255.15,24.62946681]
[1732296489156,24.85780648,255.34,255.17,23.776884]
[1732296489157,7.64853201,255.32,255.17,23.776884]
[1732296489360,7.64853201,255.32,255.18,29.21240686]
[1732296489544,18.7675,255.34,255.2,20.0]
[1732296489847,18.7675,255.34,255.22,20.0]
[1732296490052,18.7675,255.34,255.22,4.62946681]
[1732296490357,18.7675,255.34,255.22,29.21240686]
[1732296490656,18.7675,255.34,255.23,20.0]
[1732296491329,18.7675,255.34,255.27,11.94130066]
[1732296491530,18.7675,255.34,255.3,20.0]
[1732296492336,11.94130066,255.33,255.25,11.94130066]
[1732296492541,11.94130066,255.33,255.26,20.0]
[1732296492744,18.7675,255.34,255.27,11.94130066]
[1732296493058,11.94130066,255.33,255.26,20.0]
[1732296493242,18.7675,255.34,255.24,20.0]
[1732296493243,11.94130066,255.31,255.24,20.0]
[1732296493433,11.94130066,255.31,255.22,20.0]
[1732296493764,11.94130066,255.31,255.24,20.0]
[1732296494563,11.94130066,255.31,255.22,20.0]
[1732296497460,18.7675,255.34,255.26,20.0]
[1732296497749,18.7675,255.34,255.28,20.0]
[1732296498159,18.7675,255.34,255.27,20.0]
[1732296498857,18.7675,255.34,255.27,24.62946681]
[1732296499861,18.7675,255.34,255.27,36.57076747]
[1732296500157,26.2091,255.42,255.33,20.0]
[1732296500369,26.2091,255.42,255.37,20.0]
[1732296501755,26.2091,255.42,255.37,24.62946681]
[1732296503460,26.2091,255.42,255.35,20.0]
[1732296503954,11.94130066,255.41,255.34,4.58294005]
[1732296504272,11.94130066,255.41,255.33,20.0]
[1732296505270,11.94130066,255.37,255.29,4.62946681]
[1732296506547,11.94130066,255.37,255.29,24.62946681]
[1732296508258,11.94130066,255.39,255.3,11.94130066]
[1732296508570,11.94130066,255.39,255.31,20.0]
[1732296508966,26.2091,255.42,255.36,20.0]
[1732296509150,26.2091,255.42,255.38,20.0]
[1732296509346,26.2091,255.42,255.38,24.58294005]
[1732296515365,26.2091,255.42,255.38,20.0]
[1732296515755,11.94130066,255.4,255.33,31.94130066]
[1732296515957,11.94130066,255.4,255.32,4.58294005]
[1732296517092,11.94130066,255.4,255.24,4.62946681]
[1732296517093,11.94130066,255.38,255.29,11.94130066]
[1732296517386,11.94130066,255.38,255.3,20.0]
[1732296517879,11.94130066,255.4,255.32,20.0]
[1732296518270,11.94130066,255.4,255.33,4.58294005]
[1732296518983,38.15040066,255.42,255.35,11.94130066]
[1732296519168,26.2091,255.42,255.36,20.0]
[1732296519560,26.2091,255.42,255.38,20.0]
[1732296520055,19.0758,255.42,255.38,20.0]
[1732296521161,19.0758,255.42,255.36,20.0]
[1732296522581,19.0758,255.42,255.34,24.62946681]
[1732296522772,19.0758,255.42,255.36,20.0]
[1732296523690,19.0758,255.42,255.38,20.0]
[1732296524098,7.6297,255.47,255.39,11.94130066]
[1732296524595,18.9703,255.48,255.43,11.94130066]
[1732296524792,18.9703,255.48,255.43,12.26281454]
[1732296525387,7.63334773,255.45,255.43,4.62946681]
[1732296525587,7.63334773,255.45,255.35,20.0]
[1732296525779,7.63334773,255.42,255.35,20.0]
[1732296526161,7.63334773,255.42,255.24,9.21240686]
[1732296526162,7.63334773,255.38,255.3,7.63334773]
[1732296526391,7.63334773,255.34,255.24,9.21240686]
[1732296526686,7.63334773,255.34,255.26,7.63334773]
[1732296527762,7.63334773,255.34,255.24,4.58294005]
[1732296527965,19.0164,255.33,255.24,12.21628778]
[1732296528160,7.63334773,255.3,255.21,7.63334773]
[1732296528780,11.94726139,255.3,255.21,11.94726139]
[1732296529374,11.94726139,255.3,255.22,20.0]
[1732296530172,11.94726139,255.32,255.24,20.0]
[1732296530683,11.94726139,255.3,255.22,4.58294005]
[1732296530888,11.94726139,255.3,255.24,20.0]
[1732296531473,11.94726139,255.31,255.23,11.94726139]
[1732296531672,11.94726139,255.31,255.19,4.62946681]
[1732296531879,11.94726139,255.31,255.21,11.94726139]
[1732296532070,11.94726139,255.29,255.21,11.94726139]
[1732296532488,11.94726139,255.31,255.21,11.94726139]
[1732296532888,11.94726139,255.31,255.23,11.94726139]
[1732296533970,11.94726139,255.31,255.2,4.58294005]
[1732296534170,11.94726139,255.29,255.2,16.53020144]
[1732296534895,11.94726139,255.29,255.21,11.94726139]
[1732296536275,11.94726139,255.31,255.21,11.94726139]
[1732296537688,11.94726139,255.29,255.21,11.94726139]
[1732296538002,11.94726139,255.31,255.21,11.94726139]
[1732296538172,11.94726139,255.31,255.23,11.94726139]
[1732296538673,30.96366139,255.33,255.23,11.94726139]
[1732296538873,30.96366139,255.33,255.25,11.94726139]
[1732296539076,19.0164,255.33,255.29,11.94726139]
[1732296539477,19.0164,255.33,255.27,11.94726139]
[1732296539697,30.96366139,255.33,255.26,4.58294005]
[1732296539899,11.94726139,255.31,255.26,4.58294005]
[1732296540395,11.94726139,255.31,255.23,11.94726139]
[1732296540908,11.94726139,255.31,255.21,11.94726139]
[1732296541071,11.94726139,255.31,255.23,11.94726139]
[1732296541403,30.96366139,255.33,255.23,11.94726139]
[1732296542008,19.0164,255.33,255.27,11.94726139]
[1732296542483,19.0164,255.33,255.24,4.58294005]
[1732296542484,19.0164,255.33,255.29,11.94726139]
[1732296542880,19.0164,255.33,255.27,11.94726139]
[1732296545179,19.0164,255.33,255.29,11.94726139]
[1732296545889,19.0164,255.33,255.27,11.94726139]
[1732296546905,19.0164,255.33,255.25,11.94726139]
[1732296547080,30.96366139,255.33,255.25,11.94726139]
[1732296547481,30.96366139,255.33,255.23,11.94726139]
[1732296549115,19.0164,255.33,255.25,11.94726139]
[1732296550791,19.0164,255.33,255.26,7.64338689]
[1732296551713,19.0164,255.33,255.27,20.0]
[1732296553395,26.65978689,255.33,255.25,20.0]
[1732296554623,7.64338689,255.31,255.23,20.0]
[1732296555484,7.64338689,255.29,255.19,4.58294005]
[1732296555685,7.64338689,255.29,255.2,7.64338689]
[1732296556500,7.64338689,255.29,255.22,7.64338689]
[1732296556696,7.64338689,255.31,255.22,7.64338689]
[1732296556896,26.65978689,255.33,255.26,7.64338689]
[1732296557111,26.65978689,255.33,255.24,7.64338689]
[1732296559916,19.0164,255.33,255.26,7.64338689]
[1732296561506,19.0164,255.33,255.27,20.0]
[1732296561993,19.0164,255.33,255.24,4.58294005]
[1732296562193,19.0164,255.33,255.27,7.64338689]
[1732296563091,19.0164,255.33,255.26,20.0]
[1732296565599,19.0164,255.33,255.27,7.64338689]
[1732296566718,19.0164,255.33,255.31,7.64338689]
[1732296566910,19.0164,255.33,255.28,24.58294005]
[1732296567108,19.0164,255.33,255.31,7.64338689]
[1732296569220,17.4151,255.38,255.32,20.0]
[1732296569420,17.4151,255.38,255.34,20.0]
[1732296569921,17.4151,255.38,255.36,7.64338689]
[1732296570302,7.3958,255.43,255.36,7.64338689]
[1732296570626,7.3958,255.43,255.38,7.64338689]
[1732296570995,18.8728,255.44,255.4,7.64338689]
[1732296571204,7.4751,255.49,255.42,7.64338689]
[1732296571404,7.4751,255.49,255.43,20.0]
[1732296572010,15.11848689,255.49,255.43,20.0]
[1732296572223,15.11848689,255.49,255.21,2.5]
[1732296572224,7.64338689,255.46,255.21,2.5]
[1732296572519,7.4751,255.49,255.42,7.64338689]
[1732296572700,7.4751,255.49,255.39,20.0]
[1732296572701,7.4751,255.49,255.44,7.64338689]
[1732296572900,7.4751,255.49,255.44,12.22632694]
[1732296573124,7.4751,255.49,255.44,4.58294005]
[1732296573919,23.776884,255.45,255.27,20.0]
[1732296574118,7.64338689,255.42,255.33,7.64338689]
[1732296575097,7.64338689,255.42,255.28,4.62946681]
[1732296575098,18.3728,255.41,255.28,4.62946681]
[1732296575324,7.64338689,255.4,255.31,7.64338689]
[1732296575525,7.64338689,255.4,255.28,4.62946681]
[1732296575835,7.64338689,255.4,255.3,7.64338689]
[1732296576612,11.93773196,255.39,255.31,11.93773196]
[1732296577209,11.93773196,255.39,255.32,20.0]
[1732296577933,23.776884,255.4,255.32,20.0]
[1732296578810,30.31053196,255.41,255.32,20.0]
[1732296578811,18.3728,255.41,255.35,11.93773196]
[1732296579028,18.3728,255.41,255.36,20.0]
[1732296581231,18.3728,255.41,255.38,20.0]
[1732296581532,18.3728,255.41,255.4,20.0]
[1732296582229,18.3728,255.47,255.4,24.58294005]
[1732296582419,18.3728,255.47,255.44,11.93773196]
[1732296582748,18.3728,255.47,255.42,11.93773196]
[1732296582911,18.3728,255.47,255.41,4.58294005]
[1732296582912,18.3728,255.47,255.44,11.93773196]
[1732296583722,18.3728,255.47,255.43,20.0]
[1732296584025,18.3728,255.47,255.46,11.93773196]
[1732296584224,18.3728,255.47,255.44,11.93773196]
[1732296586811,17.6396,255.53,255.45,20.0]
[1732296587131,17.6396,255.53,255.49,20.0]
[1732296587522,17.6396,255.53,255.5,11.93773196]
[1732296587724,17.6396,255.53,255.51,20.0]
[1732296588638,33.275322,255.59,255.52,11.93773196]
[1732296588817,17.6396,255.59,255.54,11.93773196]
[1732296589012,17.6396,255.59,255.54,16.52067201]
[1732296590218,17.6396,255.59,255.54,11.93773196]
[1732296590730,17.6396,255.59,255.52,20.0]
[1732296590937,11.93773196,255.58,255.52,20.0]
[1732296593919,11.93773196,255.58,255.5,20.0]
[1732296594727,17.6396,255.59,255.51,11.93773196]
[1732296594938,23.776884,255.58,255.51,11.93773196]
[1732296595315,35.71461596,255.58,255.51,11.93773196]
[1732296596544,17.6396,255.59,255.51,11.93773196]
[1732296596833,17.6396,255.59,255.51,16.52067201]
[1732296597344,17.6396,255.59,255.52,20.0]
[1732296599636,11.93773196,255.58,255.52,20.0]
[1732296599845,11.93773196,255.58,255.5,20.0]
[1732296600224,11.93773196,255.56,255.47,11.93773196]
[1732296600739,11.93773196,255.54,255.48,20.0]
[1732296600942,11.93773196,255.52,255.48,20.0]
[1732296601127,11.93773196,255.52,255.43,11.93773196]
[1732296601646,11.93773196,255.56,255.47,11.93773196]
[1732296601956,35.71461596,255.58,255.49,11.93773196]
[1732296602326,35.71461596,255.58,255.5,20.0]
[1732296603539,11.93773196,255.58,255.5,20.0]
[1732296604732,11.93773196,255.56,255.5,20.0]
[1732296605345,11.93773196,255.58,255.5,20.0]
[1732296606737,7.62919267,255.57,255.5,20.0]
[1732296607541,7.62919267,255.55,255.48,20.0]
[1732296608238,17.6396,255.59,255.46,20.0]
[1732296608239,7.62919267,255.53,255.46,20.0]
[1732296608434,7.62919267,255.53,255.45,7.62919267]
[1732296608435,7.62919267,255.55,255.48,20.0]
[1732296608739,17.6396,255.59,255.48,20.0]
[1732296608942,7.62919267,255.57,255.5,20.0]
[1732296609847,17.6396,255.59,255.5,20.0]
[1732296610020,7.62919267,255.57,255.5,20.0]
[1732296610635,25.26879267,255.59,255.51,7.62919267]
[1732296611144,17.6396,255.59,255.52,20.0]
[1732296611351,17.6396,255.59,255.52,24.58294005]
[1732296612240,7.62919267,255.56,255.49,7.62919267]
[1732296612452,7.62919267,255.56,255.5,20.0]
[1732296612752,7.62919267,255.58,255.5,20.0]
[1732296613041,7.62919267,255.58,255.52,20.0]
[1732296613246,17.6396,255.59,255.52,20.0]
[1732296615553,16.1177,255.65,255.58,7.62919267]
[1732296615731,16.1177,255.65,255.6,7.62919267]
[1732296615930,16.1177,255.65,255.61,20.0]
[1732296616160,7.62919267,255.68,255.61,20.0]
[1732296616834,7.62919267,255.7,255.61,20.0]
[1732296617141,15.5791,255.71,255.62,7.62919267]
[1732296617339,15.5791,255.71,255.64,7.62919267]
[1732296617543,7.62919267,255.75,255.66,7.62919267]
[1732296617953,7.62919267,255.75,255.66,4.62946681]
[1732296618132,7.62919267,255.73,255.66,4.62946681]
[1732296618656,21.69559386,255.77,255.61,7.62919267]
[1732296618657,7.62919267,255.71,255.61,7.62919267]
[1732296618833,7.62919267,255.71,255.62,20.0]
[1732296619332,7.62919267,255.71,255.64,20.0]
[1732296620247,23.776884,255.75,255.64,24.58294005]
[1732296620441,31.40607667,255.75,255.66,20.0]
[1732296620646,35.68200301,255.75,255.66,31.90511901]
[1732296621557,27.48421901,255.77,255.68,11.90511901]
[1732296621761,15.5791,255.77,255.71,20.0]
[1732296622128,11.90511901,255.79,255.72,11.90511901]
[1732296622348,11.90511901,255.79,255.72,16.53458582]
[1732296623441,11.90511901,255.79,255.7,31.90511901]
[1732296623835,11.90511901,255.77,255.7,31.90511901]
[1732296624655,11.90511901,255.73,255.65,20.0]
[1732296624849,11.90511901,255.71,255.62,20.0]
[1732296625048,11.90511901,255.71,255.64,20.0]
[1732296626869,11.90511901,255.73,255.66,20.0]
[1732296627754,11.90511901,255.71,255.66,20.0]
[1732296627958,11.90511901,255.71,255.63,20.0]
[1732296628359,11.90511901,255.71,255.63,31.90511901]
[1732296628533,11.90511901,255.73,255.63,36.53458582]
[1732296629353,11.90511901,255.73,255.65,11.90511901]
[1732296629543,11.90511901,255.73,255.66,20.0]
[1732296631374,11.90511901,255.75,255.66,20.0]
[1732296631554,11.90511901,255.77,255.69,20.0]
[1732296631748,11.90511901,255.77,255.69,24.62946681]
[1732296632959,11.90511901,255.75,255.67,24.58294005]
[1732296633369,11.90511901,255.73,255.67,4.58294005]
[1732296633555,11.90511901,255.73,255.65,20.0]
[1732296633873,11.90511901,255.71,255.63,20.0]
[1732296634260,11.90511901,255.69,255.61,4.58294005]
[1732296634674,11.90511901,255.67,255.61,4.58294005]
[1732296635054,11.90511901,255.67,255.58,11.90511901]
[1732296635455,11.90511901,255.65,255.56,16.53458582]
[1732296636257,11.90511901,255.67,255.58,11.90511901]
[1732296636954,21.23249386,255.72,255.57,24.58294005]
[1732296636955,11.90511901,255.65,255.57,24.58294005]
[1732296637169,11.90511901,255.63,255.57,4.58294005]
[1732296637377,11.90511901,255.63,255.54,11.90511901]
[1732296637552,11.90511901,255.61,255.54,11.90511901]
[1732296637752,11.90511901,255.65,255.56,11.90511901]
[1732296638159,11.90511901,255.68,255.6,11.90511901]
[1732296638584,11.90511901,255.64,255.59,20.0]
[1732296638756,11.90511901,255.66,255.59,31.90511901]
[1732296639176,11.90511901,255.66,255.59,28.90511901]
[1732296639756,11.90511901,255.66,255.57,16.48805906]
[1732296640355,11.90511901,255.64,255.57,4.58294005]
[1732296640594,11.90511901,255.64,255.55,11.90511901]
[1732296640758,11.90511901,255.62,255.53,11.90511901]
[1732296640960,11.90511901,255.64,255.56,11.90511901]
[1732296641291,11.90511901,255.64,255.57,20.0]
[1732296641460,11.90511901,255.66,255.57,20.0]
[1732296641657,11.90511901,255.66,255.58,4.58294005]
[1732296641856,11.90511901,255.64,255.57,20.0]
[1732296642856,11.90511901,255.66,255.57,24.58294005]
[1732296643277,11.90511901,255.64,255.57,20.0]
[1732296643680,11.90511901,255.64,255.55,20.0]
[1732296644381,11.90511901,255.66,255.59,20.0]
[1732296644592,11.90511901,255.68,255.59,20.0]
[1732296645469,0.2333544,255.66,255.59,20.0]
[1732296648774,0.2333544,255.66,255.49,4.62946681]
[1732296648775,7.62383788,255.63,255.57,20.0]
[1732296649494,7.62383788,255.63,255.55,20.0]
[1732296649678,7.62383788,255.61,255.5,4.58294005]
[1732296649878,7.62383788,255.57,255.5,4.58294005]
[1732296650303,27.51469386,255.65,255.5,4.58294005]
[1732296650304,7.62383788,255.59,255.5,4.58294005]
[1732296650670,7.62383788,255.59,255.51,7.62383788]
[1732296651189,7.62383788,255.61,255.51,7.62383788]
[1732296651571,7.62383788,255.61,255.53,7.62383788]
[1732296651889,31.40072188,255.63,255.53,7.62383788]
[1732296652091,35.13853174,255.65,255.57,7.62383788]
[1732296652279,27.51469386,255.65,255.57,7.62383788]
[1732296652777,35.13853174,255.65,255.57,7.62383788]
[1732296652982,7.62383788,255.63,255.56,20.0]
[1732296654497,7.62383788,255.63,255.54,4.58294005]
[1732296654684,7.62383788,255.61,255.53,20.0]
[1732296655974,7.62383788,255.59,255.48,4.58294005]
[1732296656178,23.776884,255.6,255.51,7.62383788]
[1732296656375,7.62383788,255.61,255.51,7.62383788]
[1732296656795,7.62383788,255.59,255.5,7.62383788]
[1732296657301,7.62383788,255.59,255.51,20.0]
[1732296657998,7.62383788,255.59,255.46,4.88035588]
[1732296658300,7.62383788,255.53,255.44,7.62383788]
[1732296659485,7.62383788,255.55,255.46,7.62383788]
[1732296659684,7.62383788,255.55,255.45,12.34066447]
[1732296659997,7.62383788,255.53,255.44,20.0]
[1732296660208,23.776884,255.52,255.44,20.0]
[1732296660384,7.62383788,255.51,255.44,20.0]
[1732296660696,7.62383788,255.51,255.43,20.0]
[1732296660910,23.776884,255.52,255.44,11.92511658]
[1732296661102,23.776884,255.52,255.45,20.0]
[1732296661394,11.92511658,255.49,255.4,11.92511658]
[1732296661900,15.9463,255.46,255.38,11.92511658]
[1732296662273,15.9463,255.46,255.38,16.64194317]
[1732296662480,11.92511658,255.43,255.34,11.92511658]
[1732296662680,23.776884,255.42,255.34,11.92511658]
[1732296663087,11.92511658,255.39,255.31,4.71682659]
[1732296663285,11.92511658,255.39,255.3,11.92511658]
[1732296664307,11.92511658,255.41,255.33,20.0]
[1732296664603,18.16701658,255.43,255.35,20.0]
[1732296664904,23.776884,255.42,255.35,20.0]
[1732296665086,23.776884,255.42,255.33,20.0]
[1732296665087,11.92511658,255.41,255.33,20.0]
[1732296665277,11.92511658,255.39,255.31,20.0]
[1732296665481,11.92511658,255.37,255.29,20.0]
[1732296665705,23.776884,255.36,255.28,11.92511658]
[1732296666308,23.776884,255.34,255.25,11.92511658]
[1732296666802,23.776884,255.34,255.26,20.0]
[1732296667192,11.92511658,255.31,255.23,11.92511658]
[1732296667596,27.51431658,255.35,255.27,11.92511658]
[1732296667881,34.60781658,255.43,255.33,11.92511658]
[1732296668086,34.60781658,255.43,255.35,11.92511658]
[1732296668907,11.92511658,255.37,255.29,11.92511658]
[1732296669199,11.92511658,255.37,255.3,20.0]
[1732296669900,11.92511658,255.35,255.25,11.92511658]
[1732296670699,3.9153,255.41,255.23,11.92511658]
[1732296670700,23.776884,255.32,255.23,11.92511658]
[1732296671482,23.776884,255.32,255.23,16.64194317]
[1732296671906,11.92511658,255.29,255.19,11.92511658]
[1732296672091,11.92511658,255.25,255.17,11.92511658]
[1732296672405,6.3201,255.31,255.15,11.92511658]
[1732296672406,11.92511658,255.23,255.15,11.92511658]
[1732296672604,23.776884,255.22,255.15,11.92511658]
[1732296672810,11.92511658,255.23,255.15,11.92511658]
[1732296673014,16.4559,255.24,255.19,11.92511658]
[1732296673387,16.4559,255.24,255.17,11.92511658]
[1732296673594,11.92511658,255.21,255.13,11.92511658]
[1732296674900,11.92511658,255.21,255.11,11.92511658]
[1732296675216,23.776884,255.16,255.07,11.92511658]
[1732296675419,11.92511658,255.17,255.09,11.92511658]
[1732296676199,18.28121658,255.2,255.11,11.92511658]